[Event "GER-ch Youth ODJM 2019"]
[Site "Willingen"]
[Date "2019.06.11"]
[Round "4.4"]
[White "Dartmann Aubanell, Catriona"]
[Black "Matthes, Benjamin"]
[Result "0-1"]
[ECO "B30"]
[WhiteElo "1728"]
[BlackElo "1737"]
[Annotator "NA"]
[PlyCount "116"]
[EventDate "2019.06.07"]
[EventType "swiss"]
[EventRounds "9"]
[EventCountry "GER"]
[SourceTitle "playchess.com"]
[Source "ChessBase"]
[SourceQuality "1"]
[TimeControl "40/5400+30:1800+30"]

1. e4 {[%emt 0:00:00]} c5 {[%emt 0:00:00]} 2. Nf3 {[%emt 0:00:00]} Nc6 {[%emt 0:00:00]} 3. c3 {[%emt 0:00:00]} Nf6 {[%emt 0:00:00]} 4. e5 {[%emt 0:00:05]} Nd5 {[%emt 0:00:00]} 5. d4 {[%emt 0:00:12]} cxd4 {[%emt 0:00:01]} 6. cxd4 {[%emt 0:00:11]} d6 {[%emt 0:00:25]} 7. Bc4 {[%emt 0:01:13]} Nb6 {[%emt 0:00:13]} 8. Bd3 {[%emt 0:00:34]} Bg4 {[%emt 0:04:00]} 9. Bb5 {[%emt 0:14:19]} dxe5 {[%emt 0:13:19]} 10. dxe5 {[%emt 0:01:36]} Qxd1+ {[%emt 0:05:18]} 11. Kxd1 {[%emt 0:00:02]} O-O-O+ {[%emt 0:03:43]} 12. Ke1 {[%emt 0:04:34]} Bxf3 {[%emt 0:01:18]} 13. gxf3 {[%emt 0:00:16]} Nd4 {[%emt 0:08:30]} 14. Na3 {[%emt 0:03:29]} e6 {[%emt 0:09:34]} 15. Rb1 {[%emt 0:05:55]} Nxf3+ {[%emt 0:08:58]} 16. Ke2 {[%emt 0:01:04]} Nd4+ {[%emt 0:04:45]} 17. Ke1 {[%emt 0:05:18]} Nf3+ {[%emt 0:04:47]} 18. Ke2 {[%emt 0:00:18]} Nd4+ {[%emt 0:00:02]} 19. Ke1 {[%emt 0:00:34]} Bxa3 {[%emt 0:01:01]} 20. bxa3 {[%emt 0:00:07]} Nxb5 {[%emt 0:00:03]} 21. Rxb5 {[%emt 0:00:15]} Rd5 {[%emt 0:05:12]} 22. Rxd5 {[%emt 0:02:41]} Nxd5 {[%emt 0:01:30]} 23. Rg1 {[%emt 0:06:44]} g6 {[%emt 0:03:59]} 24. Rg3 {[%emt 0:01:03]} Kd7 {[%emt 0:08:35]} 25. Rf3 {[%emt 0:01:29]} Rc8 {[%emt 0:01:45]} 26. Kd2 {[%emt 0:03:39]} Ke8 {[%emt 0:02:25]} 27. Bb2 {[%emt 0:03:54]} Rc4 {[%emt 0:02:53]} 28. Rb3 {[%emt 0:07:43]} b6 {[%emt 0:00:38]} 29. Rh3 {[%emt 0:03:24]} h5 {[%emt 0:02:07]} 30. Rd3 {[%emt 0:01:50]} Rf4 {[%emt 0:05:21]} 31. Ke2 {[%emt 0:00:59]} Rh4 {[%emt 0:00:44]} 32. Kf1 {[%emt 0:05:32]} Rxh2 {[%emt 0:01:38]} 33. Kg1 {[%emt 0:03:12]} Rh4 {[%emt 0:02:49]} 34. Bd4 {[%emt 0:03:34]} Nf4 {[%emt 0:00:50]} 35. Rd2 {[%emt 0:01:09]} Ne2+ {[%emt 0:00:14]} 36. Rxe2 {[%emt 0:00:01]} Rxd4 {[%emt 0:00:01]} 37. Rc2 {[%emt 0:04:04]} Kd7 {[%emt 0:00:07]} 38. Kg2 {[%emt 0:02:07]} Re4 {[%emt 0:00:32]} 39. Rd2+ {[%emt 0:00:34]} Ke7 {[%emt 0:00:01]} 40. Rc2 {[%emt 0:00:22]} Rxe5 {[%emt 0:00:11]} 41. Rc7+ {[%emt 0:30:23]} Kf6 {[%emt 0:30:14]} 42. Rxa7 {[%emt 0:00:13]} Ra5 {[%emt 0:00:00]} 43. Rb7 {[%emt 0:00:00]} Rxa3 {[%emt 0:00:00]} 44. Rxb6 {[%emt 0:00:00]} Rxa2 {[%emt 0:00:00]} 45. Rb7 {[%emt 0:00:00]} g5 {[%emt 0:00:00]} 46. Kg3 {[%emt 0:00:00]} Ra3+ {[%emt 0:00:00]} 47. Kg2 {[%emt 0:00:00]} g4 {[%emt 0:00:00]} 48. Rc7 {[%emt 0:00:00]} Kg6 {[%emt 0:00:00]} 49. Rc6 {[%emt 0:00:00]} Kf5 {[%emt 0:00:00]} 50. Rc5+ {[%emt 0:00:00]} e5 {[%emt 0:00:00]} 51. Rc6 {[%emt 0:00:00]} f6 {[%emt 0:00:00]} 52. Rb6 {[%emt 0:00:00]} h4 {[%emt 0:00:00]} 53. Rc6 {[%emt 0:00:00]} h3+ {[%emt 0:00:00]} 54. Kh2 {[%emt 0:00:00]} Ra2 {[%emt 0:00:00]} 55. Kg3 {[%emt 0:00:00]} h2 {[%emt 0:00:00]} 56. Rc1 {[%emt 0:00:00]} Rc2 {[%emt 0:00:00]} 57. Rh1 {[%emt 0:00:00]} Rc3+ {[%emt 0:00:00]} 58. Kg2 {[%emt 0:00:00]} Rh3 {[%emt 0:00:00] normal} 0-1

[Event "GER-ch Youth ODJM 2019"]
[Site "Willingen"]
[Date "2019.06.11"]
[Round "4.5"]
[White "Wechtenbruch, Jamie"]
[Black "Sinka, Silas"]
[Result "0-1"]
[ECO "C11"]
[WhiteElo "1371"]
[BlackElo "1292"]
[Annotator "NA"]
[PlyCount "121"]
[EventDate "2019.06.07"]
[EventType "swiss"]
[EventRounds "9"]
[EventCountry "GER"]
[SourceTitle "playchess.com"]
[Source "ChessBase"]
[SourceQuality "1"]
[TimeControl "40/5400+30:1800+30"]

1. e4 {[%emt 0:00:00]} e6 {[%emt 0:00:00]} 2. d4 {[%emt 0:00:00]} d5 {[%emt 0:00:00]} 3. Nc3 {[%emt 0:00:00]} Nf6 {[%emt 0:00:00]} 4. e5 {[%emt 0:00:33]} Nfd7 {[%emt 0:00:00]} 5. f4 {[%emt 0:01:41]} c5 {[%emt 0:00:00]} 6. Nf3 {[%emt 0:06:00]} Nc6 {[%emt 0:00:05]} 7. Be3 {[%emt 0:03:12]} a6 {[%emt 0:00:12]} 8. dxc5 {[%emt 0:01:32]} Bxc5 {[%emt 0:00:42]} 9. Bxc5 {[%emt 0:00:30]} Nxc5 {[%emt 0:00:07]} 10. Nd4 {[%emt 0:01:26]} Bd7 {[%emt 0:00:58]} 11. a3 {[%emt 0:03:44]} Qb6 {[%emt 0:03:50]} 12. Nxc6 Bxc6 {[%emt 0:00:51]} 13. Rb1 {[%emt 0:08:12]} Rd8 {[%emt 0:00:22]} 14. Qd4 {[%emt 0:01:29]} Na4 {[%emt 0:01:49]} 15. Qxb6 {[%emt 0:01:31]} Nxb6 {[%emt 0:00:13]} 16. Bd3 {[%emt 0:02:32]} Nc4 {[%emt 0:01:01]} 17. Bxc4 {[%emt 0:01:51]} dxc4 {[%emt 0:00:08]} 18. O-O {[%emt 0:00:43]} Rd2 {[%emt 0:00:07]} 19. Rf2 {[%emt 0:00:28]} Rxf2 {[%emt 0:00:28]} 20. Kxf2 {[%emt 0:00:09]} Ke7 {[%emt 0:00:06]} 21. Rd1 {[%emt 0:00:52]} Rd8 {[%emt 0:00:22]} 22. Rxd8 {[%emt 0:00:11]} Kxd8 {[%emt 0:00:04]} 23. g3 {[%emt 0:00:20]} Kc7 {[%emt 0:00:14]} 24. Ke3 Kb6 {[%emt 0:01:22]} 25. Kd4 {[%emt 0:00:40]} Bb5 26. Nxb5 Kxb5 {[%emt 0:00:37]} 27. b3 {[%emt 0:02:39]} cxb3 {[%emt 0:00:11]} 28. cxb3 {[%emt 0:00:02]} Kc6 {[%emt 0:00:57]} 29. g4 {[%emt 0:03:26]} Kb5 30. f5 {[%emt 0:01:50]} Kc6 {[%emt 0:00:50]} 31. Ke4 {[%emt 0:08:18]} g6 {[%emt 0:00:16]} 32. fxg6 {[%emt 0:01:26]} fxg6 {[%emt 0:00:12]} 33. g5 {[%emt 0:00:17]} Kc5 {[%emt 0:00:24]} 34. h3 {[%emt 0:01:51]} b5 {[%emt 0:00:08]} 35. h4 {[%emt 0:01:28]} a5 {[%emt 0:00:19]} 36. Kd3 {[%emt 0:03:45]} Kd5 {[%emt 0:00:26]} 37. Kc3 {[%emt 0:00:47]} Kxe5 {[%emt 0:00:09]} 38. a4 {[%emt 0:00:09]} bxa4 {[%emt 0:00:09]} 39. bxa4 {[%emt 0:00:01]} Kd5 {[%emt 0:00:06]} 40. Kd3 {[%emt 0:00:36]} e5 {[%emt 0:00:30]} 41. Ke3 {[%emt 0:30:30]} e4 {[%emt 0:30:43]} 42. Ke2 {[%emt 0:00:00]} Ke5 {[%emt 0:00:37]} 43. Ke3 Kf5 44. Kf2 {[%emt 0:00:44]} Kf4 {[%emt 0:00:41]} 45. Ke2 {[%emt 0:00:19]} e3 {[%emt 0:00:06]} 46. Ke1 {[%emt 0:00:41]} Kg4 {[%emt 0:00:13]} 47. Ke2 {[%emt 0:00:13]} Kxh4 {[%emt 0:00:04]} 48. Kxe3 {[%emt 0:00:01]} Kxg5 {[%emt 0:00:08]} 49. Kf3 {[%emt 0:00:32]} h5 {[%emt 0:00:14]} 50. Kg3 {[%emt 0:00:00]} Kf5 {[%emt 0:00:13]} 51. Kh4 {[%emt 0:00:08]} g5+ {[%emt 0:00:22]} 52. Kg3 h4+ {[%emt 0:00:34]} 53. Kh3 {[%emt 0:00:08]} g4+ {[%emt 0:00:18]} 54. Kg2 Kf4 {[%emt 0:00:13]} 55. Kf2 {[%emt 0:00:08]} g3+ 56. Kg2 h3+ {[%emt 0:00:26]} 57. Kf1 {[%emt 0:00:30]} Kf3 58. Kg1 {[%emt 0:00:08]} g2 {[%emt 0:00:22]} 59. Kh2 {[%emt 0:00:02]} Kf2 {[%emt 0:00:07]} 60. Kxh3 {[%emt 0:00:05]} g1=Q {[%emt 0:00:10]} 61. Kh4 {[%emt 0:00:03] normal} 0-1

[Event "GER-ch Youth ODJM 2019"]
[Site "Willingen"]
[Date "2019.06.11"]
[Round "4.6"]
[White "Navarro Jahnke, Eric"]
[Black "Racky, Selina"]
[Result "0-1"]
[ECO "D00"]
[WhiteElo "1259"]
[BlackElo "1037"]
[Annotator "NA"]
[PlyCount "171"]
[EventDate "2019.06.07"]
[EventType "swiss"]
[EventRounds "9"]
[EventCountry "GER"]
[SourceTitle "playchess.com"]
[Source "ChessBase"]
[SourceQuality "1"]
[TimeControl "40/5400+30:1800+30"]

1. d4 {[%emt 0:00:00]} d5 {[%emt 0:00:00]} 2. e3 {[%emt 0:00:00]} Bf5 {[%emt 0:00:00]} 3. c4 {[%emt 0:00:35]} c6 {[%emt 0:00:00]} 4. Nc3 {[%emt 0:00:28]} e6 {[%emt 0:00:00]} 5. Bd2 {[%emt 0:00:38]} Nf6 {[%emt 0:01:06]} 6. Be2 {[%emt 0:02:46]} Be7 {[%emt 0:01:42]} 7. f4 {[%emt 0:01:41]} Nbd7 {[%emt 0:02:32]} 8. Nf3 {[%emt 0:01:09]} O-O {[%emt 0:02:10]} 9. O-O {[%emt 0:00:58]} Ne4 {[%emt 0:05:03]} 10. Nxe4 {[%emt 0:01:30]} Bxe4 {[%emt 0:00:13]} 11. Ne5 {[%emt 0:01:01]} f6 {[%emt 0:03:30]} 12. Nf3 {[%emt 0:01:25]} Qc7 {[%emt 0:02:08]} 13. Qb3 {[%emt 0:02:53]} f5 {[%emt 0:02:00]} 14. Rac1 {[%emt 0:03:19]} Nf6 {[%emt 0:01:48]} 15. Bd3 {[%emt 0:02:00]} Qd7 {[%emt 0:01:36]} 16. Ne5 {[%emt 0:00:38]} Qd8 {[%emt 0:01:41]} 17. Qxb7 {[%emt 0:14:03]} Rb8 {[%emt 0:01:40]} 18. Qxa7 {[%emt 0:03:12]} Bxd3 {[%emt 0:01:28]} 19. Nxc6 {[%emt 0:04:04]} Ra8 {[%emt 0:00:23]} 20. Qxe7 {[%emt 0:04:20]} Qxe7 {[%emt 0:00:33]} 21. Nxe7+ {[%emt 0:01:43]} Kh8 22. Rfe1 {[%emt 0:02:54]} dxc4 {[%emt 0:00:43]} 23. Bb4 {[%emt 0:01:39]} Rf7 {[%emt 0:02:14]} 24. Red1 {[%emt 0:02:06]} Nd5 {[%emt 0:00:45]} 25. Nxd5 {[%emt 0:01:48]} exd5 {[%emt 0:02:11]} 26. Kf2 {[%emt 0:04:12]} Rf6 {[%emt 0:02:08]} 27. h3 {[%emt 0:01:52]} Rg6 {[%emt 0:02:25]} 28. g3 {[%emt 0:04:04]} Be4 {[%emt 0:01:27]} 29. a3 {[%emt 0:02:20]} h5 {[%emt 0:00:27]} 30. Rg1 {[%emt 0:01:20]} Rh6 {[%emt 0:01:48]} 31. Be7 {[%emt 0:04:33]} Rb8 {[%emt 0:01:13]} 32. Bb4 {[%emt 0:00:41]} Rg8 {[%emt 0:01:06]} 33. Ra1 {[%emt 0:00:57]} g5 {[%emt 0:00:58]} 34. Be7 {[%emt 0:02:24]} g4 {[%emt 0:01:24]} 35. h4 {[%emt 0:01:09]} Ra6 {[%emt 0:00:56]} 36. Rgc1 {[%emt 0:02:16]} Rb8 {[%emt 0:00:56]} 37. Bb4 {[%emt 0:01:22]} Bc2 {[%emt 0:01:06]} 38. Rxc2 {[%emt 0:04:48]} Rxb4 {[%emt 0:00:06]} 39. Rac1 {[%emt 0:02:08]} Rb3 {[%emt 0:00:37]} 40. Ke2 {[%emt 0:01:54]} Re6 {[%emt 0:01:15]} 41. Rc3 {[%emt 0:37:17]} Rxb2+ {[%emt 0:30:07]} 42. R1c2 {[%emt 0:00:05]} Rb3 43. Rxb3 {[%emt 0:02:50]} cxb3 {[%emt 0:01:10]} 44. Rb2 {[%emt 0:00:06]} Rb6 {[%emt 0:00:10]} 45. Kd3 {[%emt 0:00:29]} Kg7 {[%emt 0:00:20]} 46. a4 {[%emt 0:00:59]} Ra6 {[%emt 0:00:30]} 47. Kc3 {[%emt 0:00:56]} Rxa4 {[%emt 0:00:20]} 48. Rxb3 {[%emt 0:00:29]} Kf6 {[%emt 0:00:24]} 49. Kb2 {[%emt 0:00:50]} Ke6 {[%emt 0:01:14]} 50. Rb6+ {[%emt 0:00:40]} Kd7 {[%emt 0:00:17]} 51. Rf6 {[%emt 0:00:44]} Rb4+ {[%emt 0:00:18]} 52. Kc3 {[%emt 0:00:41]} Rb1 {[%emt 0:00:15]} 53. Rxf5 {[%emt 0:00:21]} Kc6 {[%emt 0:00:23]} 54. Rxh5 {[%emt 0:00:16]} Rg1 {[%emt 0:00:24]} 55. f5 {[%emt 0:02:03]} Rxg3 {[%emt 0:00:25]} 56. Kd3 {[%emt 0:00:42]} Rf3 {[%emt 0:00:27]} 57. Rg5 {[%emt 0:00:24]} g3 {[%emt 0:00:13]} 58. h5 {[%emt 0:00:20]} Kd6 {[%emt 0:00:15]} 59. h6 {[%emt 0:00:42]} g2 {[%emt 0:00:20]} 60. Rxg2 {[%emt 0:00:54]} Rh3 {[%emt 0:00:15]} 61. Rg6+ {[%emt 0:00:51]} Ke7 {[%emt 0:00:14]} 62. Re6+ {[%emt 0:02:38]} Kf7 {[%emt 0:00:12]} 63. Rd6 {[%emt 0:00:34]} Rh5 {[%emt 0:00:53]} 64. Rd7+ {[%emt 0:00:37]} Kg8 {[%emt 0:00:16]} 65. h7+ {[%emt 0:00:28]} Rxh7 {[%emt 0:00:16]} 66. Rxh7 {[%emt 0:00:07]} Kxh7 {[%emt 0:00:04]} 67. e4 {[%emt 0:00:08]} dxe4+ {[%emt 0:00:26]} 68. Kxe4 {[%emt 0:00:05]} Kg7 {[%emt 0:00:04]} 69. d5 {[%emt 0:00:11]} Kf7 {[%emt 0:00:08]} 70. Ke5 {[%emt 0:00:15]} Ke7 {[%emt 0:00:12]} 71. f6+ {[%emt 0:00:22]} Ke8 {[%emt 0:00:11]} 72. Ke6 {[%emt 0:00:22]} Kf8 {[%emt 0:00:12]} 73. f7 {[%emt 0:00:10]} Kg7 {[%emt 0:00:05]} 74. Ke7 {[%emt 0:00:09]} Kg6 {[%emt 0:00:07]} 75. f8=Q {[%emt 0:00:08]} Kh7 {[%emt 0:00:07]} 76. Qf5+ {[%emt 0:00:24]} Kh6 {[%emt 0:00:16]} 77. Qf1 {[%emt 0:00:09]} Kg5 {[%emt 0:00:11]} 78. d6 {[%emt 0:00:08]} Kg6 {[%emt 0:00:08]} 79. d7 {[%emt 0:00:12]} Kg5 {[%emt 0:00:10]} 80. d8=Q Kg6 {[%emt 0:00:36]} 81. Qf6+ {[%emt 0:00:17]} Kh5 {[%emt 0:00:12]} 82. Qdh8+ {[%emt 0:00:16]} Kg4 {[%emt 0:00:10]} 83. Qhg7+ {[%emt 0:00:07]} Kh5 {[%emt 0:00:03]} 84. Qh7+ {Kh4 Qg8+ Kh5 Qe8+} Kg4 85. Qg8+ Kh5 86. Qh7+ {normal} 0-1

[Event "GER-ch Youth ODJM 2019"]
[Site "Willingen"]
[Date "2019.06.11"]
[Round "4.7"]
[White "Grossmann, Piet"]
[Black "Lange, Malina"]
[Result "1-0"]
[ECO "C47"]
[WhiteElo "1801"]
[BlackElo "1562"]
[Annotator "NA"]
[PlyCount "85"]
[EventDate "2019.06.07"]
[EventType "swiss"]
[EventRounds "9"]
[EventCountry "GER"]
[SourceTitle "playchess.com"]
[Source "ChessBase"]
[SourceQuality "1"]
[TimeControl "40/5400+30:1800+30"]

1. e4 {[%emt 0:00:00]} e5 {[%emt 0:00:00]} 2. Nf3 {[%emt 0:00:00]} Nc6 {[%emt 0:00:00]} 3. Nc3 {[%emt 0:00:00]} Nf6 {[%emt 0:00:50]} 4. d4 {[%emt 0:00:00]} exd4 {[%emt 0:01:52]} 5. Nxd4 {[%emt 0:00:10]} Bc5 {[%emt 0:00:50]} 6. Be3 {[%emt 0:00:09]} Bb6 {[%emt 0:00:50]} 7. Bc4 {[%emt 0:00:26]} d6 {[%emt 0:01:39]} 8. f3 {[%emt 0:00:22]} O-O {[%emt 0:01:22]} 9. Qd2 {[%emt 0:00:13]} Re8 {[%emt 0:04:13]} 10. O-O-O {[%emt 0:06:54]} Na5 {[%emt 0:04:24]} 11. Bb3 {[%emt 0:02:32]} Bxd4 {[%emt 0:05:45]} 12. Bxd4 {[%emt 0:00:31]} Nxb3+ {[%emt 0:01:03]} 13. axb3 {[%emt 0:00:05]} Bd7 {[%emt 0:07:20]} 14. g4 {[%emt 0:11:16]} b5 {[%emt 0:08:44]} 15. Qg5 {[%emt 0:02:21]} h6 {[%emt 0:02:01]} 16. Bxf6 {[%emt 0:01:54]} hxg5 {[%emt 0:01:53]} 17. Bxd8 {[%emt 0:00:05]} Rexd8 {[%emt 0:01:53]} 18. h4 {[%emt 0:01:43]} gxh4 {[%emt 0:02:23]} 19. Rxh4 {[%emt 0:00:04]} f6 {[%emt 0:00:47]} 20. Nd5 {[%emt 0:02:10]} a5 {[%emt 0:02:36]} 21. Nxc7 {[%emt 0:01:18]} Rac8 {[%emt 0:01:07]} 22. Nd5 {[%emt 0:00:14]} Kf7 {[%emt 0:00:51]} 23. Nb6 {[%emt 0:00:49]} Rc6 {[%emt 0:01:16]} 24. Nxd7 {[%emt 0:00:05]} Rxd7 {[%emt 0:00:08]} 25. Rh5 {[%emt 0:00:15]} Rb7 {[%emt 0:03:38]} 26. Rd4 {[%emt 0:06:43]} Ke6 {[%emt 0:04:17]} 27. Rhd5 {[%emt 0:05:36]} g5 {[%emt 0:04:16]} 28. b4 {[%emt 0:05:49]} a4 {[%emt 0:01:38]} 29. Rd3 {[%emt 0:02:40]} Rb8 {[%emt 0:07:06]} 30. c3 {[%emt 0:02:03]} Rcb6 {[%emt 0:03:14]} 31. Rd1 {[%emt 0:03:09]} Rh8 {[%emt 0:02:12]} 32. R1d2 {[%emt 0:02:43]} Rh1+ {[%emt 0:02:43]} 33. Kc2 {[%emt 0:05:48]} Rh3 {[%emt 0:01:34]} 34. Rf5 {[%emt 0:02:58]} Rh1 {[%emt 0:03:46]} 35. f4 {[%emt 0:13:28]} Rg1 {[%emt 0:04:14]} 36. fxg5 {[%emt 0:02:04]} Rxg4 {[%emt 0:02:56]} 37. Rxf6+ {[%emt 0:02:07]} Ke5 {[%emt 0:01:04]} 38. Rd5+ {[%emt 0:00:31]} Kxe4 {[%emt 0:01:04]} 39. Rd4+ {[%emt 0:00:05]} Ke5 {[%emt 0:00:48]} 40. Rxg4 {[%emt 0:00:06]} Rb7 {[%emt 0:00:47]} 41. Kd3 {[%emt 0:30:47]} d5 {[%emt 0:30:43]} 42. Rgf4 {[%emt 0:00:18]} Rg7 {[%emt 0:00:35]} 43. R4f5# {[%emt 0:00:11] normal} 1-0

[Event "GER-ch Youth ODJM 2019"]
[Site "Willingen"]
[Date "2019.06.11"]
[Round "4.8"]
[White "Schilay, Eva"]
[Black "Werner, Tom"]
[Result "0-1"]
[ECO "C01"]
[WhiteElo "1628"]
[BlackElo "1772"]
[Annotator "NA"]
[PlyCount "56"]
[EventDate "2019.06.07"]
[EventType "swiss"]
[EventRounds "9"]
[EventCountry "GER"]
[SourceTitle "playchess.com"]
[Source "ChessBase"]
[SourceQuality "1"]
[TimeControl "40/5400+30:1800+30"]

1. e4 {[%emt 0:00:00]} e6 {[%emt 0:00:00]} 2. d4 {[%emt 0:00:00]} d5 {[%emt 0:00:00]} 3. exd5 {[%emt 0:00:17]} exd5 {[%emt 0:00:00]} 4. Nf3 {[%emt 0:00:25]} Bd6 {[%emt 0:00:08]} 5. Bd3 {[%emt 0:00:14]} Ne7 {[%emt 0:00:17]} 6. O-O {[%emt 0:00:44]} O-O {[%emt 0:00:07]} 7. Be3 {[%emt 0:00:12]} c6 {[%emt 0:00:28]} 8. c3 {[%emt 0:00:11]} Bf5 {[%emt 0:00:16]} 9. Re1 {[%emt 0:00:49]} Re8 {[%emt 0:00:27]} 10. Qc2 {[%emt 0:00:42]} Bxd3 {[%emt 0:00:43]} 11. Qxd3 {[%emt 0:00:08]} Nd7 {[%emt 0:00:56]} 12. Nbd2 {[%emt 0:01:40]} Ng6 {[%emt 0:01:58]} 13. Ng5 {[%emt 0:08:05]} h6 {[%emt 0:03:44]} 14. Ngf3 {[%emt 0:00:11]} Qc7 {[%emt 0:02:43]} 15. g3 {[%emt 0:04:41]} Nf6 {[%emt 0:04:26]} 16. Re2 {[%emt 0:03:23]} Re7 {[%emt 0:02:05]} 17. Rae1 {[%emt 0:01:07]} Rae8 {[%emt 0:01:06]} 18. Qc2 {[%emt 0:03:12]} Re6 {[%emt 0:07:22]} 19. Kg2 {[%emt 0:08:52]} R8e7 {[%emt 0:04:42]} 20. Kg1 {[%emt 0:02:20]} Qb8 {[%emt 0:07:19]} 21. Kg2 {[%emt 0:04:09]} Qe8 {[%emt 0:02:48]} 22. Qd1 {[%emt 0:12:17]} Ng4 {[%emt 0:01:37]} 23. Nf1 {[%emt 0:02:15]} f5 {[%emt 0:03:08]} 24. h3 {[%emt 0:10:33]} Nf6 {[%emt 0:02:15]} 25. h4 {[%emt 0:03:54]} f4 {[%emt 0:04:28]} 26. h5 {[%emt 0:00:56]} Nxh5 {[%emt 0:02:56]} 27. Ne5 {[%emt 0:14:55]} fxe3 {[%emt 0:02:11]} 28. Rxe3 {[%emt 0:00:29]} Nxe5 {[%emt 0:01:26] normal} 0-1

[Event "GER-ch Youth ODJM 2019"]
[Site "Willingen"]
[Date "2019.06.11"]
[Round "4.10"]
[White "Schimnatkowski, Lukas"]
[Black "Kotyk, Michael"]
[Result "0-1"]
[ECO "C44"]
[WhiteElo "2139"]
[BlackElo "1966"]
[Annotator "NA"]
[PlyCount "129"]
[EventDate "2019.06.07"]
[EventType "swiss"]
[EventRounds "9"]
[EventCountry "GER"]
[SourceTitle "playchess.com"]
[Source "ChessBase"]
[SourceQuality "1"]
[TimeControl "40/5400+30:1800+30"]

1. e4 {[%emt 0:00:00]} e5 {[%emt 0:00:00]} 2. Nf3 {[%emt 0:00:00]} Nc6 {[%emt 0:00:02]} 3. c3 {[%emt 0:00:06]} d5 {[%emt 0:00:04]} 4. Qa4 {[%emt 0:00:10]} f6 {[%emt 0:00:08]} 5. Bb5 {[%emt 0:00:22]} Qd6 {[%emt 0:00:16]} 6. exd5 {[%emt 0:01:34]} Qxd5 {[%emt 0:00:07]} 7. Bxc6+ {[%emt 0:02:14]} bxc6 {[%emt 0:11:14]} 8. O-O {[%emt 0:01:45]} Bd6 {[%emt 0:00:29]} 9. c4 {[%emt 0:04:28]} Qc5 {[%emt 0:01:45]} 10. d3 {[%emt 0:06:57]} Qb6 {[%emt 0:14:33]} 11. Be3 {[%emt 0:04:09]} Bc5 {[%emt 0:03:57]} 12. Bxc5 {[%emt 0:01:36]} Qxc5 13. Re1 {[%emt 0:08:29]} Kf7 {[%emt 0:04:30]} 14. Nc3 {[%emt 0:01:01]} Ne7 {[%emt 0:04:33]} 15. Rad1 {[%emt 0:02:44]} Rd8 {[%emt 0:02:37]} 16. Ne4 {[%emt 0:15:29]} Qb6 {[%emt 0:00:10]} 17. Qa3 {[%emt 0:02:20]} Nf5 18. Ng3 {[%emt 0:12:41]} Nxg3 {[%emt 0:14:30]} 19. hxg3 {[%emt 0:00:06]} c5 {[%emt 0:00:18]} 20. Rc1 {[%emt 0:10:53]} Qb4 {[%emt 0:19:01]} 21. Rc3 {[%emt 0:02:00]} Bf5 {[%emt 0:00:12]} 22. Re3 {[%emt 0:00:16]} Rdb8 {[%emt 0:02:14]} 23. Re2 {[%emt 0:01:47]} a5 {[%emt 0:02:36]} 24. Rb3 {[%emt 0:00:55]} Qxa3 {[%emt 0:00:01]} 25. Rxa3 {[%emt 0:00:07]} a4 {[%emt 0:00:06]} 26. Kf1 {[%emt 0:01:46]} g5 {[%emt 0:04:59]} 27. Rc2 {[%emt 0:03:53]} Rb4 {[%emt 0:00:43]} 28. Ke1 {[%emt 0:01:14]} Rab8 {[%emt 0:02:40]} 29. Kd2 {[%emt 0:00:19]} Bd7 {[%emt 0:03:03]} 30. Kc3 {[%emt 0:01:26]} Bc6 {[%emt 0:00:50]} 31. g4 {[%emt 0:05:31]} Bd7 {[%emt 0:01:35]} 32. Nh2 {[%emt 0:00:18]} Rh8 33. f3 {[%emt 0:00:51]} h5 {[%emt 0:03:33]} 34. gxh5 {[%emt 0:00:04]} Rxh5 {[%emt 0:00:12]} 35. Nf1 {[%emt 0:00:03]} f5 {[%emt 0:01:44]} 36. Ng3 {[%emt 0:01:48]} Rh2 {[%emt 0:00:33]} 37. b3 {[%emt 0:00:49]} Kf6 {[%emt 0:01:10]} 38. Rd2 {[%emt 0:01:26]} Ke6 {[%emt 0:02:31]} 39. Rf2 {[%emt 0:00:35]} Rh8 {[%emt 0:01:04]} 40. Ne2 {[%emt 0:01:59]} Rh4 {[%emt 0:01:16]} 41. g3 {[%emt 0:32:26]} Rh8 {[%emt 0:05:29]} 42. d4 {[%emt 0:00:00]} exd4+ {[%emt 0:06:20]} 43. Nxd4+ {[%emt 0:00:00]} cxd4+ {[%emt 0:01:20]} 44. Kxb4 {[%emt 0:00:00]} Kd6 {[%emt 0:00:02]} 45. Rxa4 {[%emt 0:00:00]} Rb8+ {[%emt 0:01:54]} 46. Ka3 {[%emt 0:00:00]} Bxa4 {[%emt 0:00:17]} 47. Kxa4 {[%emt 0:00:00]} Kc5 {[%emt 0:00:36]} 48. Ka3 {[%emt 0:00:00]} d3 {[%emt 0:00:06]} 49. Kb2 {[%emt 0:00:00]} Kd4 {[%emt 0:00:14]} 50. Rh2 {[%emt 0:00:00]} Re8 {[%emt 0:00:45]} 51. Rh7 {[%emt 0:00:00]} Re2+ {[%emt 0:00:33]} 52. Ka3 {[%emt 0:00:00]} Kc3 {[%emt 0:03:31]} 53. Rxc7 {[%emt 0:00:00]} Re8 {[%emt 0:00:10]} 54. Ka4 {[%emt 0:00:00]} Rd8 {[%emt 0:02:05]} 55. Rh7 {[%emt 0:00:00]} d2 {[%emt 0:00:05]} 56. Rh1 {[%emt 0:00:00]} Re8 {[%emt 0:00:15]} 57. Rd1 {[%emt 0:00:00]} Kc2 {[%emt 0:00:01]} 58. Rxd2+ {[%emt 0:00:00]} Kxd2 {[%emt 0:00:01]} 59. c5 {[%emt 0:00:00]} Ke3 {[%emt 0:00:07]} 60. b4 {[%emt 0:00:00]} Kxf3 {[%emt 0:01:27]} 61. b5 {[%emt 0:00:00]} Ke4 {[%emt 0:00:18]} 62. b6 {[%emt 0:00:08]} Kd5 {[%emt 0:01:28]} 63. Kb5 {[%emt 0:00:16]} Re1 {[%emt 0:00:15]} 64. a4 {[%emt 0:00:55]} Rb1+ {[%emt 0:00:28]} 65. Ka6 {[%emt 0:00:05] normal} 0-1